[Event "December 19 Late 2023"]
[Site "https://www.chess.com"]
[Date "2023.12.19"]
[Round "10"]
[White "Smith, Garrett L"]
[Black "Chaika, Vitalii"]
[Result "1-0"]
[Board "72"]
[TimeControl "180+1"]
[WhiteFideId "2024829"]
[BlackFideId "14111802"]
[WhiteElo "2379"]
[BlackElo "2010"]
[WhiteTeam "USA"]
[BlackTeam "UKR"]
[WhiteClock "0:00:46"]
[BlackClock "0:00:14"]

1. e4 {[%clk 0:03:00]}  d6 {[%clk 0:02:58]} 2. d4 {[%clk 0:03:00]}  Nf6 {[%clk 0:02:58]} 3. Nc3 {[%clk 0:03:00]}  e5 {[%clk 0:02:57]} 4. Nf3 {[%clk 0:03:00]}  Nbd7 {[%clk 0:02:56]} 5. Bc4 {[%clk 0:03:00]}  Be7 {[%clk 0:02:56]} 6. a4 {[%clk 0:02:59]}  O-O {[%clk 0:02:55]} 7. O-O {[%clk 0:03:00]}  a5 {[%clk 0:02:55]} 8. Re1 {[%clk 0:02:59]}  c6 {[%clk 0:02:55]} 9. h3 {[%clk 0:02:56]}  exd4 {[%clk 0:02:55]} 10. Nxd4 {[%clk 0:02:55]}  Nc5 {[%clk 0:02:55]} 11. Qf3 {[%clk 0:02:49]}  Be6 {[%clk 0:02:52]} 12. Nxe6 {[%clk 0:02:44]}  fxe6 {[%clk 0:02:52]} 13. Qg3 {[%clk 0:02:34]}  d5 {[%clk 0:02:47]} 14. exd5 {[%clk 0:02:28]}  exd5 {[%clk 0:02:47]} 15. Bd3 {[%clk 0:02:19]}  Bd6 {[%clk 0:02:42]} 16. Qh4 {[%clk 0:02:13]}  Nxd3 {[%clk 0:02:21]} 17. cxd3 {[%clk 0:02:13]}  Bc5 {[%clk 0:02:21]} 18. d4 {[%clk 0:02:09]}  Bb4 {[%clk 0:02:17]} 19. Bg5 {[%clk 0:01:53]}  h6 {[%clk 0:02:15]} 20. Bd2 {[%clk 0:01:52]}  Bxc3 {[%clk 0:02:10]} 21. Bxc3 {[%clk 0:01:52]}  Ne4 {[%clk 0:02:10]} 22. Qxd8 {[%clk 0:01:50]}  Raxd8 {[%clk 0:02:11]} 23. f3 {[%clk 0:01:48]}  Nd6 {[%clk 0:01:55]} 24. Bxa5 {[%clk 0:01:47]}  Ra8 {[%clk 0:01:50]} 25. Bb4 {[%clk 0:01:47]}  Rfd8 {[%clk 0:01:48]} 26. Re7 {[%clk 0:01:43]}  Nc4 {[%clk 0:01:33]} 27. b3 {[%clk 0:01:36]}  Nd6 {[%clk 0:01:12]} 28. Rae1 {[%clk 0:01:35]}  Nf5 {[%clk 0:01:09]} 29. Rxb7 {[%clk 0:01:30]}  Rab8 {[%clk 0:01:04]} 30. Rxb8 {[%clk 0:01:28]}  Rxb8 {[%clk 0:01:05]} 31. Bc5 {[%clk 0:01:26]}  Rxb3 {[%clk 0:01:02]} 32. a5 {[%clk 0:01:21]}  Rb2 {[%clk 0:00:54]} 33. a6 {[%clk 0:01:08]}  Ra2 {[%clk 0:00:52]} 34. a7 {[%clk 0:01:09]}  Kf7 {[%clk 0:00:50]} 35. Rb1 {[%clk 0:00:49]}  Nh4 {[%clk 0:00:37]} 36. Rb8 {[%clk 0:00:45]}  Rxg2+ {[%clk 0:00:30]} 37. Kf1 {[%clk 0:00:46]}  Ra2 {[%clk 0:00:18]} 38. a8=Q {[%clk 0:00:45]}  Rxa8 {[%clk 0:00:14]} 39. Rxa8 {[%clk 0:00:46]} 1-0

[Event "December 19 Late 2023"]
[Site "https://www.chess.com"]
[Date "2023.12.19"]
[Round "10"]
[White "Bold, Andre"]
[Black "Nielsen, Viktor Haarmark"]
[Result "0-1"]
[Board "74"]
[TimeControl "180+1"]
[WhiteFideId "16208471"]
[BlackFideId "1444492"]
[WhiteElo "2110"]
[BlackElo "2315"]
[WhiteTeam "GER"]
[BlackTeam "DEN"]
[WhiteClock "0:00:20"]
[BlackClock "0:00:44"]

1. Nf3 {[%clk 0:03:00]}  Nf6 {[%clk 0:03:00]} 2. g3 {[%clk 0:02:58]}  g6 {[%clk 0:03:01]} 3. Bg2 {[%clk 0:02:59]}  Bg7 {[%clk 0:03:01]} 4. O-O {[%clk 0:03:00]}  O-O {[%clk 0:03:02]} 5. c4 {[%clk 0:03:00]}  c6 {[%clk 0:03:03]} 6. Nc3 {[%clk 0:02:58]}  d5 {[%clk 0:03:03]} 7. cxd5 {[%clk 0:02:57]}  cxd5 {[%clk 0:03:04]} 8. Qb3 {[%clk 0:02:54]}  Nc6 {[%clk 0:03:03]} 9. d3 {[%clk 0:02:53]}  h6 {[%clk 0:02:49]} 10. Bf4 {[%clk 0:02:45]}  d4 {[%clk 0:02:46]} 11. Nb5 {[%clk 0:02:41]}  Nd5 {[%clk 0:02:44]} 12. Bd2 {[%clk 0:02:37]}  Be6 {[%clk 0:02:37]} 13. Qa4 {[%clk 0:02:36]}  Nb6 {[%clk 0:02:27]} 14. Qd1 {[%clk 0:02:35]}  a6 {[%clk 0:02:24]} 15. Na3 {[%clk 0:02:35]}  Nd5 {[%clk 0:02:25]} 16. Rc1 {[%clk 0:02:29]}  Rc8 {[%clk 0:02:23]} 17. Qc2 {[%clk 0:02:10]}  Ndb4 {[%clk 0:02:19]} 18. Qb1 {[%clk 0:02:02]}  Bxa2 {[%clk 0:02:10]} 19. Qa1 {[%clk 0:02:02]}  Bd5 {[%clk 0:02:06]} 20. Nc4 {[%clk 0:02:00]}  Kh7 {[%clk 0:01:54]} 21. Qa3 {[%clk 0:01:40]}  b5 {[%clk 0:01:43]} 22. Bxb4 {[%clk 0:01:31]}  Nxb4 {[%clk 0:01:43]} 23. Qxb4 {[%clk 0:01:29]}  bxc4 {[%clk 0:01:43]} 24. dxc4 {[%clk 0:01:29]}  Ba8 {[%clk 0:01:30]} 25. b3 {[%clk 0:01:26]}  e5 {[%clk 0:01:29]} 26. Nd2 {[%clk 0:01:21]}  Bxg2 {[%clk 0:01:29]} 27. Kxg2 {[%clk 0:01:22]}  f5 {[%clk 0:01:28]} 28. Ra1 {[%clk 0:01:17]}  Rf6 {[%clk 0:01:27]} 29. c5 {[%clk 0:01:06]}  Rfc6 {[%clk 0:01:24]} 30. Rfc1 {[%clk 0:01:05]}  e4 {[%clk 0:01:24]} 31. Qc4 {[%clk 0:01:00]}  Qf6 {[%clk 0:01:19]} 32. b4 {[%clk 0:00:56]}  h5 {[%clk 0:01:19]} 33. Nb3 {[%clk 0:00:49]}  h4 {[%clk 0:01:16]} 34. Rd1 {[%clk 0:00:48]}  Rd8 {[%clk 0:01:14]} 35. Na5 {[%clk 0:00:46]}  Re6 {[%clk 0:01:14]} 36. c6 {[%clk 0:00:45]}  e3 {[%clk 0:01:08]} 37. f3 {[%clk 0:00:45]}  d3 {[%clk 0:01:02]} 38. c7 {[%clk 0:00:41]}  Rc8 {[%clk 0:01:02]} 39. Qxd3 {[%clk 0:00:33]}  Rxc7 {[%clk 0:00:57]} 40. Rac1 {[%clk 0:00:33]}  Rxc1 {[%clk 0:00:54]} 41. Rxc1 {[%clk 0:00:34]}  Rd6 {[%clk 0:00:54]} 42. Qxe3 {[%clk 0:00:27]}  Re6 {[%clk 0:00:49]} 43. Qd3 {[%clk 0:00:26]}  Qb2 {[%clk 0:00:49]} 44. Rc2 {[%clk 0:00:22]}  Qxb4 {[%clk 0:00:49]} 45. Nc6 {[%clk 0:00:22]}  Qe1 {[%clk 0:00:46]} 46. Nd8 {[%clk 0:00:19]}  h3+ {[%clk 0:00:43]} 47. Kxh3 {[%clk 0:00:19]}  Qf1+ {[%clk 0:00:44]} 48. Kh4 {[%clk 0:00:20]}  Bf6# {[%clk 0:00:44]} 0-1

[Event "December 19 Late 2023"]
[Site "https://www.chess.com"]
[Date "2023.12.19"]
[Round "10"]
[White "Marin Pincheira, Carlos"]
[Black "Ferreira, Vitor Hugo Vieira"]
[Result "1/2-1/2"]
[Board "76"]
[TimeControl "180+1"]
[WhiteFideId "3407543"]
[BlackFideId "2119765"]
[WhiteElo "2080"]
[BlackElo "2123"]
[WhiteTeam "CHI"]
[BlackTeam "BRA"]
[WhiteClock "0:00:31"]
[BlackClock "0:00:15"]

1. d4 {[%clk 0:03:00]}  d5 {[%clk 0:02:51]} 2. c4 {[%clk 0:03:00]}  c6 {[%clk 0:02:46]} 3. Nf3 {[%clk 0:02:59]}  Nf6 {[%clk 0:02:27]} 4. e3 {[%clk 0:02:58]}  e6 {[%clk 0:02:25]} 5. Qc2 {[%clk 0:02:57]}  Nbd7 {[%clk 0:02:21]} 6. b3 {[%clk 0:02:51]}  Bd6 {[%clk 0:02:19]} 7. Bb2 {[%clk 0:02:51]}  O-O {[%clk 0:02:05]} 8. Bd3 {[%clk 0:02:47]}  Qe7 {[%clk 0:01:36]} 9. Ne5 {[%clk 0:02:43]}  c5 {[%clk 0:01:34]} 10. O-O {[%clk 0:02:41]}  b6 {[%clk 0:01:32]} 11. f4 {[%clk 0:02:40]}  Bb7 {[%clk 0:01:30]} 12. Nc3 {[%clk 0:02:25]}  dxc4 {[%clk 0:01:26]} 13. bxc4 {[%clk 0:02:24]}  cxd4 {[%clk 0:01:27]} 14. exd4 {[%clk 0:02:24]}  g6 {[%clk 0:01:23]} 15. Nb5 {[%clk 0:02:17]}  a6 {[%clk 0:01:14]} 16. Nxd6 {[%clk 0:02:15]}  Qxd6 {[%clk 0:01:15]} 17. Rae1 {[%clk 0:02:05]}  Rac8 {[%clk 0:01:14]} 18. Qf2 {[%clk 0:02:04]}  Ne8 {[%clk 0:00:58]} 19. Nxd7 {[%clk 0:01:54]}  Qxd7 {[%clk 0:00:56]} 20. f5 {[%clk 0:01:53]}  exf5 {[%clk 0:00:51]} 21. d5 {[%clk 0:01:51]}  Ng7 {[%clk 0:00:41]} 22. Qxb6 {[%clk 0:01:49]}  Nh5 {[%clk 0:00:31]} 23. Be2 {[%clk 0:01:23]}  Qc7 {[%clk 0:00:14]} 24. Qb3 {[%clk 0:01:16]}  Nf4 {[%clk 0:00:10]} 25. Rxf4 {[%clk 0:01:08]}  Qxf4 {[%clk 0:00:10]} 26. Qxb7 {[%clk 0:01:09]}  Rb8 {[%clk 0:00:08]} 27. Qxa6 {[%clk 0:00:39]}  Rxb2 {[%clk 0:00:08]} 28. Bf3 {[%clk 0:00:39]}  Qd2 {[%clk 0:00:06]} 29. Rd1 {[%clk 0:00:33]}  Qf2+ {[%clk 0:00:05]} 30. Kh1 {[%clk 0:00:32]}  Rxa2 {[%clk 0:00:05]} 31. Qf6 {[%clk 0:00:29]}  Rfa8 {[%clk 0:00:04]} 32. d6 {[%clk 0:00:27]}  Qb2 {[%clk 0:00:01]} 33. Qxb2 {[%clk 0:00:21]}  Rxb2 {[%clk 0:00:02]} 34. d7 {[%clk 0:00:21]}  Rd8 {[%clk 0:00:01]} 35. c5 {[%clk 0:00:21]}  Rc2 {[%clk 0:00:02]} 36. c6 {[%clk 0:00:21]}  Kf8 {[%clk 0:00:02]} 37. h4 {[%clk 0:00:20]}  Ke7 {[%clk 0:00:03]} 38. Re1+ {[%clk 0:00:20]}  Kd6 {[%clk 0:00:03]} 39. Re8 {[%clk 0:00:20]}  Kc7 {[%clk 0:00:04]} 40. Re7 {[%clk 0:00:19]}  Rc1+ {[%clk 0:00:04]} 41. Kh2 {[%clk 0:00:19]}  Rc4 {[%clk 0:00:03]} 42. Kg3 {[%clk 0:00:18]}  h5 {[%clk 0:00:03]} 43. Rxf7 {[%clk 0:00:18]}  Rxc6 {[%clk 0:00:03]} 44. Bxc6 {[%clk 0:00:18]}  Kxc6 {[%clk 0:00:04]} 45. Kf4 {[%clk 0:00:18]}  Rxd7 {[%clk 0:00:03]} 46. Rxd7 {[%clk 0:00:19]}  Kxd7 {[%clk 0:00:04]} 47. Kg5 {[%clk 0:00:19]}  Ke6 {[%clk 0:00:05]} 48. Kxg6 {[%clk 0:00:20]}  Ke5 {[%clk 0:00:05]} 49. Kxh5 {[%clk 0:00:21]}  Kf4 {[%clk 0:00:05]} 50. Kg6 {[%clk 0:00:21]}  Kg4 {[%clk 0:00:05]} 51. h5 {[%clk 0:00:21]}  f4 {[%clk 0:00:06]} 52. h6 {[%clk 0:00:22]}  Kg3 {[%clk 0:00:07]} 53. h7 {[%clk 0:00:22]}  Kxg2 {[%clk 0:00:07]} 54. h8=Q {[%clk 0:00:23]}  f3 {[%clk 0:00:08]} 55. Qf8 {[%clk 0:00:22]}  f2 {[%clk 0:00:09]} 56. Qa8+ {[%clk 0:00:22]}  Kg1 {[%clk 0:00:09]} 57. Qa7 {[%clk 0:00:23]}  Kg2 {[%clk 0:00:10]} 58. Qb7+ {[%clk 0:00:23]}  Kg1 {[%clk 0:00:10]} 59. Qb6 {[%clk 0:00:24]}  Kg2 {[%clk 0:00:10]} 60. Qc6+ {[%clk 0:00:24]}  Kg1 {[%clk 0:00:11]} 61. Qc5 {[%clk 0:00:25]}  Kg2 {[%clk 0:00:12]} 62. Qd5+ {[%clk 0:00:26]}  Kg1 {[%clk 0:00:12]} 63. Qd4 {[%clk 0:00:26]}  Kg2 {[%clk 0:00:12]} 64. Qe4+ {[%clk 0:00:27]}  Kg1 {[%clk 0:00:13]} 65. Qe3 {[%clk 0:00:28]}  Kg2 {[%clk 0:00:13]} 66. Qe4+ {[%clk 0:00:28]}  Kg1 {[%clk 0:00:13]} 67. Qg4+ {[%clk 0:00:29]}  Kh1 {[%clk 0:00:14]} 68. Qh3+ {[%clk 0:00:29]}  Kg1 {[%clk 0:00:14]} 69. Qg3+ {[%clk 0:00:30]}  Kh1 {[%clk 0:00:14]} 70. Qf3+ {[%clk 0:00:30]}  Kg1 {[%clk 0:00:15]} 71. Qe3 {[%clk 0:00:30]}  Kg2 {[%clk 0:00:15]} 72. Qe2 {[%clk 0:00:31]}  Kg1 {[%clk 0:00:15]} 73. Qe3 {[%clk 0:00:31]} 1/2-1/2

[Event "December 19 Late 2023"]
[Site "https://www.chess.com"]
[Date "2023.12.19"]
[Round "10"]
[White "Hoffmann, Asa"]
[Black "Krzywda, Andrzej"]
[Result "0-1"]
[Board "79"]
[TimeControl "180+1"]
[WhiteFideId "2001470"]
[BlackFideId "1114565"]
[WhiteElo "2117"]
[BlackElo "2130"]
[WhiteTeam "USA"]
[BlackTeam "POL"]
[WhiteClock "0:00:00"]
[BlackClock "0:00:42"]

1. d4 {[%clk 0:02:34]}  d5 {[%clk 0:02:56]} 2. Bg5 {[%clk 0:02:32]}  f6 {[%clk 0:02:56]} 3. Bf4 {[%clk 0:02:32]}  c5 {[%clk 0:02:47]} 4. c3 {[%clk 0:02:30]}  Nc6 {[%clk 0:02:46]} 5. Nf3 {[%clk 0:02:30]}  Bg4 {[%clk 0:02:44]} 6. Nbd2 {[%clk 0:02:29]}  e6 {[%clk 0:02:33]} 7. h3 {[%clk 0:02:10]}  Bh5 {[%clk 0:02:32]} 8. g4 {[%clk 0:02:09]}  Bg6 {[%clk 0:02:31]} 9. e3 {[%clk 0:02:06]}  Qb6 {[%clk 0:02:28]} 10. Qb3 {[%clk 0:02:05]}  c4 {[%clk 0:02:28]} 11. Qxb6 {[%clk 0:02:02]}  axb6 {[%clk 0:02:29]} 12. a3 {[%clk 0:02:02]}  b5 {[%clk 0:02:29]} 13. Rc1 {[%clk 0:02:00]}  Nge7 {[%clk 0:02:27]} 14. Bg2 {[%clk 0:01:58]}  Nc8 {[%clk 0:02:27]} 15. O-O {[%clk 0:01:55]}  Nb6 {[%clk 0:02:27]} 16. Nh4 {[%clk 0:01:55]}  Bd3 {[%clk 0:02:26]} 17. Rfe1 {[%clk 0:01:55]}  Na4 {[%clk 0:02:27]} 18. e4 {[%clk 0:01:48]}  dxe4 {[%clk 0:02:21]} 19. Nxe4 {[%clk 0:01:40]}  Bxe4 {[%clk 0:02:08]} 20. Bxe4 {[%clk 0:01:18]}  g5 {[%clk 0:02:08]} 21. Bxg5 {[%clk 0:01:07]}  fxg5 {[%clk 0:02:06]} 22. Nf3 {[%clk 0:01:07]}  Be7 {[%clk 0:01:55]} 23. d5 {[%clk 0:00:57]}  exd5 {[%clk 0:01:48]} 24. Bxd5 {[%clk 0:00:57]}  Nxb2 {[%clk 0:01:37]} 25. Re6 {[%clk 0:00:43]}  Nd3 {[%clk 0:01:31]} 26. Rb1 {[%clk 0:00:43]}  Nd8 {[%clk 0:01:29]} 27. Re2 {[%clk 0:00:37]}  Nf4 {[%clk 0:01:29]} 28. Re5 {[%clk 0:00:35]}  Rxa3 {[%clk 0:01:07]} 29. Rxb5 {[%clk 0:00:32]}  Ng6 {[%clk 0:00:57]} 30. Re3 {[%clk 0:00:29]}  Ra1+ {[%clk 0:00:54]} 31. Kh2 {[%clk 0:00:28]}  Kd7 {[%clk 0:00:52]} 32. Bxc4 {[%clk 0:00:25]}  Bd6+ {[%clk 0:00:51]} 33. Ne5+ {[%clk 0:00:22]}  Nxe5 {[%clk 0:00:49]} 34. Rbxe5 {[%clk 0:00:21]}  Bxe5+ {[%clk 0:00:50]} 35. Rxe5 {[%clk 0:00:20]}  Nc6 {[%clk 0:00:49]} 36. Rxg5 {[%clk 0:00:19]}  Re8 {[%clk 0:00:46]} 37. Kg2 {[%clk 0:00:15]}  Re7 {[%clk 0:00:46]} 38. h4 {[%clk 0:00:15]}  Rc1 {[%clk 0:00:46]} 39. Bd5 {[%clk 0:00:13]}  Rxc3 {[%clk 0:00:45]} 40. h5 {[%clk 0:00:13]}  Ne5 {[%clk 0:00:43]} 41. Rg8 {[%clk 0:00:11]}  b5 {[%clk 0:00:42]} 42. g5 {[%clk 0:00:11]}  Rc5 {[%clk 0:00:42]} 43. Be4 {[%clk 0:00:11]}  Nf7 {[%clk 0:00:41]} 44. Bxh7 {[%clk 0:00:09]}  Rxg5+ {[%clk 0:00:41]} 45. Rxg5 {[%clk 0:00:00]}  Nxg5 {[%clk 0:00:42]} 0-1

[Event "December 19 Late 2023"]
[Site "https://www.chess.com"]
[Date "2023.12.19"]
[Round "10"]
[White "Gao, Raymond"]
[Black "Melikhov, Evgeny V."]
[Result "0-1"]
[Board "81"]
[TimeControl "180+1"]
[WhiteFideId "2629429"]
[BlackFideId "4122046"]
[WhiteElo "1953"]
[BlackElo "2165"]
[WhiteTeam "CAN"]
[BlackTeam "GRE"]
[WhiteClock "0:00:35"]
[BlackClock "0:01:30"]

1. e4 {[%clk 0:02:53]}  c5 {[%clk 0:02:59]} 2. Nf3 {[%clk 0:02:53]}  d6 {[%clk 0:02:59]} 3. d4 {[%clk 0:02:52]}  cxd4 {[%clk 0:02:59]} 4. Qxd4 {[%clk 0:02:53]}  Nc6 {[%clk 0:02:58]} 5. Qe3 {[%clk 0:02:53]}  e5 {[%clk 0:02:52]} 6. Bb5 {[%clk 0:02:52]}  Bd7 {[%clk 0:02:44]} 7. O-O {[%clk 0:02:43]}  a6 {[%clk 0:02:43]} 8. Bc4 {[%clk 0:02:37]}  Be7 {[%clk 0:02:42]} 9. Nc3 {[%clk 0:02:28]}  Nf6 {[%clk 0:02:40]} 10. Rd1 {[%clk 0:02:28]}  O-O {[%clk 0:02:38]} 11. h3 {[%clk 0:02:27]}  b5 {[%clk 0:02:37]} 12. Bb3 {[%clk 0:02:26]}  Na5 {[%clk 0:02:36]} 13. Nd5 {[%clk 0:02:22]}  Nxb3 {[%clk 0:02:35]} 14. axb3 {[%clk 0:02:23]}  Nxd5 {[%clk 0:02:33]} 15. Rxd5 {[%clk 0:02:24]}  Bc6 {[%clk 0:02:30]} 16. Rd1 {[%clk 0:02:17]}  Qc7 {[%clk 0:02:28]} 17. Nd2 {[%clk 0:01:58]}  d5 {[%clk 0:02:15]} 18. exd5 {[%clk 0:01:57]}  Bxd5 {[%clk 0:02:15]} 19. Ne4 {[%clk 0:01:47]}  Bb7 {[%clk 0:02:03]} 20. c3 {[%clk 0:01:41]}  Rad8 {[%clk 0:02:00]} 21. Bd2 {[%clk 0:01:33]}  f5 {[%clk 0:01:51]} 22. Ng5 {[%clk 0:00:54]}  f4 {[%clk 0:01:50]} 23. Ne6 {[%clk 0:00:45]}  fxe3 {[%clk 0:01:49]} 24. Nxc7 {[%clk 0:00:45]}  Rxd2 {[%clk 0:01:45]} 25. Rxd2 {[%clk 0:00:41]}  exd2 {[%clk 0:01:45]} 26. Rd1 {[%clk 0:00:42]}  Rd8 {[%clk 0:01:42]} 27. Ne6 {[%clk 0:00:41]}  Rd7 {[%clk 0:01:35]} 28. f4 {[%clk 0:00:39]}  Be4 {[%clk 0:01:31]} 29. fxe5 {[%clk 0:00:37]}  Bc2 {[%clk 0:01:30]} 30. Rxd2 {[%clk 0:00:35]} 0-1

[Event "December 19 Late 2023"]
[Site "https://www.chess.com"]
[Date "2023.12.19"]
[Round "10"]
[White "Slavin, Alexey"]
[Black "Mazurkiewicz, Michal"]
[Result "0-1"]
[Board "82"]
[TimeControl "180+1"]
[WhiteFideId "24104388"]
[BlackFideId "1124943"]
[WhiteElo "2264"]
[BlackElo "2103"]
[WhiteTeam "RUS"]
[BlackTeam "POL"]
[WhiteClock "0:00:00"]
[BlackClock "0:00:03"]

1. e4 {[%clk 0:02:59]}  d6 {[%clk 0:02:59]} 2. d4 {[%clk 0:02:59]}  Nf6 {[%clk 0:03:00]} 3. Nc3 {[%clk 0:02:59]}  c6 {[%clk 0:02:59]} 4. Be3 {[%clk 0:02:56]}  e5 {[%clk 0:02:59]} 5. Nf3 {[%clk 0:02:55]}  Qc7 {[%clk 0:02:58]} 6. h3 {[%clk 0:02:54]}  b5 {[%clk 0:02:58]} 7. Bd3 {[%clk 0:02:53]}  Be7 {[%clk 0:02:57]} 8. g4 {[%clk 0:02:53]}  O-O {[%clk 0:02:56]} 9. a3 {[%clk 0:02:51]}  Nbd7 {[%clk 0:02:54]} 10. g5 {[%clk 0:02:23]}  Ne8 {[%clk 0:02:49]} 11. h4 {[%clk 0:02:22]}  Bb7 {[%clk 0:02:48]} 12. h5 {[%clk 0:02:22]}  a5 {[%clk 0:02:47]} 13. dxe5 {[%clk 0:02:10]}  dxe5 {[%clk 0:02:46]} 14. Nh4 {[%clk 0:02:08]}  Nd6 {[%clk 0:02:32]} 15. Nf5 {[%clk 0:02:06]}  Nxf5 {[%clk 0:02:32]} 16. exf5 {[%clk 0:02:07]}  Bc5 {[%clk 0:02:28]} 17. Ne4 {[%clk 0:02:01]}  Bxe3 {[%clk 0:02:27]} 18. fxe3 {[%clk 0:02:01]}  c5 {[%clk 0:02:24]} 19. Rh4 {[%clk 0:01:59]}  c4 {[%clk 0:02:23]} 20. Be2 {[%clk 0:01:58]}  Nc5 {[%clk 0:02:20]} 21. Bf3 {[%clk 0:01:38]}  Nxe4 {[%clk 0:01:24]} 22. Bxe4 {[%clk 0:01:38]}  c3 {[%clk 0:01:24]} 23. b3 {[%clk 0:01:22]}  Bxe4 {[%clk 0:01:14]} 24. Rxe4 {[%clk 0:01:22]}  Rad8 {[%clk 0:01:14]} 25. Qf3 {[%clk 0:01:22]}  Rd2 {[%clk 0:01:12]} 26. f6 {[%clk 0:01:12]}  g6 {[%clk 0:00:30]} 27. hxg6 {[%clk 0:01:11]}  fxg6 {[%clk 0:00:30]} 28. Rc1 {[%clk 0:00:59]}  Rfd8 {[%clk 0:00:28]} 29. Qg3 {[%clk 0:00:30]}  Qd6 {[%clk 0:00:22]} 30. Qg4 {[%clk 0:00:17]}  Rh2 {[%clk 0:00:18]} 31. Kf1 {[%clk 0:00:15]}  Rh1+ {[%clk 0:00:13]} 32. Kg2 {[%clk 0:00:14]}  Rxc1 {[%clk 0:00:14]} 33. f7+ {[%clk 0:00:13]}  Kxf7 {[%clk 0:00:14]} 34. Qf3+ {[%clk 0:00:13]}  Kg8 {[%clk 0:00:13]} 35. Rg4 {[%clk 0:00:12]}  Rf8 {[%clk 0:00:11]} 36. Qb7 {[%clk 0:00:11]}  Qd2+ {[%clk 0:00:10]} 37. Kg3 {[%clk 0:00:11]}  Rg1+ {[%clk 0:00:09]} 38. Kh3 {[%clk 0:00:10]}  Qxe3+ {[%clk 0:00:05]} 39. Kh2 {[%clk 0:00:09]}  Rxg4 {[%clk 0:00:05]} 40. Qd5+ {[%clk 0:00:07]}  Kg7 {[%clk 0:00:03]} 41. Qxe5+ {[%clk 0:00:00]}  Qxe5+ {[%clk 0:00:03]} 0-1

[Event "December 19 Late 2023"]
[Site "https://www.chess.com"]
[Date "2023.12.19"]
[Round "10"]
[White "Grapsa, Georgia"]
[Black "Kovacevic, Radmila"]
[Result "1-0"]
[Board "85"]
[TimeControl "180+1"]
[WhiteFideId "4206436"]
[BlackFideId "933171"]
[WhiteElo "1794"]
[BlackElo "2052"]
[WhiteTeam "GRE"]
[BlackTeam "SRB"]
[WhiteClock "0:00:12"]
[BlackClock "0:00:00"]

1. e4 {[%clk 0:02:59]}  e5 {[%clk 0:03:00]} 2. Nf3 {[%clk 0:02:59]}  d5 {[%clk 0:03:00]} 3. exd5 {[%clk 0:02:59]}  e4 {[%clk 0:02:59]} 4. Qe2 {[%clk 0:02:59]}  Nf6 {[%clk 0:02:59]} 5. Nc3 {[%clk 0:02:56]}  Be7 {[%clk 0:02:58]} 6. Nxe4 {[%clk 0:02:56]}  O-O {[%clk 0:02:58]} 7. Nxf6+ {[%clk 0:02:54]}  Bxf6 {[%clk 0:02:59]} 8. d4 {[%clk 0:02:51]}  Qxd5 {[%clk 0:02:55]} 9. Be3 {[%clk 0:02:50]}  Bg4 {[%clk 0:02:52]} 10. h3 {[%clk 0:02:44]}  Bxf3 {[%clk 0:02:38]} 11. Qxf3 {[%clk 0:02:45]}  Qa5+ {[%clk 0:02:37]} 12. c3 {[%clk 0:02:44]}  Qb6 {[%clk 0:02:34]} 13. O-O-O {[%clk 0:02:40]}  Nd7 {[%clk 0:02:30]} 14. Bd3 {[%clk 0:02:39]}  Qa5 {[%clk 0:02:24]} 15. Qf5 {[%clk 0:02:35]}  Qxf5 {[%clk 0:02:21]} 16. Bxf5 {[%clk 0:02:36]}  Nb6 {[%clk 0:02:20]} 17. b3 {[%clk 0:02:33]}  Nd5 {[%clk 0:02:14]} 18. Bd2 {[%clk 0:02:29]}  c5 {[%clk 0:02:11]} 19. c4 {[%clk 0:02:19]}  Ne7 {[%clk 0:02:07]} 20. Be4 {[%clk 0:02:20]}  Bxd4 {[%clk 0:02:02]} 21. Bxb7 {[%clk 0:02:18]}  Rab8 {[%clk 0:02:00]} 22. Be4 {[%clk 0:02:17]}  Bxf2 {[%clk 0:01:57]} 23. Bf4 {[%clk 0:02:17]}  Rbd8 {[%clk 0:01:37]} 24. Bd6 {[%clk 0:02:02]}  Rde8 {[%clk 0:01:34]} 25. Bf3 {[%clk 0:01:49]}  Be3+ {[%clk 0:01:15]} 26. Kc2 {[%clk 0:01:48]}  f5 {[%clk 0:01:15]} 27. a3 {[%clk 0:01:43]}  Rf7 {[%clk 0:00:53]} 28. Rhe1 {[%clk 0:01:37]}  f4 {[%clk 0:00:50]} 29. b4 {[%clk 0:01:33]}  cxb4 {[%clk 0:00:46]} 30. axb4 {[%clk 0:01:34]}  Rc8 {[%clk 0:00:35]} 31. Kb3 {[%clk 0:01:23]}  g6 {[%clk 0:00:32]} 32. Ra1 {[%clk 0:01:00]}  Kg7 {[%clk 0:00:30]} 33. c5 {[%clk 0:00:55]}  Nf5 {[%clk 0:00:23]} 34. Be5+ {[%clk 0:00:52]}  Kh6 {[%clk 0:00:22]} 35. Kc4 {[%clk 0:00:41]}  Nh4 {[%clk 0:00:18]} 36. Bd5 {[%clk 0:00:38]}  Rf5 {[%clk 0:00:16]} 37. Bd4 {[%clk 0:00:37]}  Bxd4 {[%clk 0:00:14]} 38. Kxd4 {[%clk 0:00:38]}  Rd8 {[%clk 0:00:14]} 39. Re5 {[%clk 0:00:39]}  f3 {[%clk 0:00:13]} 40. g3 {[%clk 0:00:36]}  f2 {[%clk 0:00:09]} 41. gxh4 {[%clk 0:00:28]}  Rf4+ {[%clk 0:00:06]} 42. Re4 {[%clk 0:00:23]}  f1=Q {[%clk 0:00:06]} 43. Rxf1 {[%clk 0:00:21]}  Rxf1 {[%clk 0:00:07]} 44. c6 {[%clk 0:00:21]}  Rd1+ {[%clk 0:00:07]} 45. Kc4 {[%clk 0:00:19]}  R1xd5 {[%clk 0:00:04]} 46. b5 {[%clk 0:00:19]}  Rd1 {[%clk 0:00:03]} 47. Re7 {[%clk 0:00:19]}  Rc1+ {[%clk 0:00:03]} 48. Kb4 {[%clk 0:00:19]}  Rd4+ {[%clk 0:00:03]} 49. Kb3 {[%clk 0:00:17]}  Rd5 {[%clk 0:00:03]} 50. Rb7 {[%clk 0:00:16]}  Rdc5 {[%clk 0:00:02]} 51. Kb4 {[%clk 0:00:14]}  R1c4+ {[%clk 0:00:01]} 52. Kb3 {[%clk 0:00:15]}  Rc3+ {[%clk 0:00:01]} 53. Kb2 {[%clk 0:00:14]}  Rc2+ {[%clk 0:00:02]} 54. Ka3 {[%clk 0:00:15]}  R2c3+ {[%clk 0:00:02]} 55. Kb4 {[%clk 0:00:15]}  R3c4+ {[%clk 0:00:02]} 56. Ka5 {[%clk 0:00:15]}  Rc1 {[%clk 0:00:02]} 57. Rd7 {[%clk 0:00:13]}  Ra1+ {[%clk 0:00:01]} 58. Kb4 {[%clk 0:00:14]}  Rac1 {[%clk 0:00:02]} 59. Rxa7 {[%clk 0:00:13]}  R1c4+ {[%clk 0:00:02]} 60. Ka5 {[%clk 0:00:13]}  Rxh4 {[%clk 0:00:01]} 61. Rb7 {[%clk 0:00:12]}  Rhc4 {[%clk 0:00:00]} 62. Kb6 {[%clk 0:00:12]} 1-0